bitfinex/quotes_ETHUSD_20260131
["timestamp","ask_amount","ask_price","bid_price","bid_amount"]
[1769888917699,0.52115788,2398.7,2397.7,0.0008]
[1769888918219,1.04227466,2398.6,2397.7,0.0008]
[1769888918599,1.04227466,2398.6,2396.9,0.89172695]
[1769888918600,0.1024,2398.5,2396.6,14.10600531]
[1769888918798,0.1024,2398.5,2396.7,1.04309913]
[1769888918799,0.01672695,2398.3,2396.7,1.04309913]
[1769888919005,0.875,2398.2,2397.1,0.0008]
[1769888919400,0.01672695,2397.8,2396.8,0.0016]
[1769888919600,0.01672695,2398.0,2396.5,0.0008]
[1769888919899,0.01672695,2397.9,2396.5,0.0008]
[1769888920097,0.1024,2397.7,2396.5,0.0008]
[1769888920291,0.65235085,2397.7,2396.5,0.0008]
[1769888920597,0.01672695,2397.6,2396.5,0.0008]
[1769888920800,0.01672695,2397.3,2396.2,0.0016]
[1769888920995,0.01672695,2397.3,2396.2,0.0008]
[1769888920996,0.89172695,2397.2,2396.2,0.0008]
[1769888921321,0.825,2397.2,2396.1,1.04334924]
[1769888921503,4.18721656,2397.9,2396.2,1.04331212]
[1769888921700,0.1024,2397.5,2396.2,1.04329654]
[1769888921899,4.18721656,2397.9,2396.2,14.4100973]
[1769888921900,0.5332239,2397.7,2396.2,14.4100973]
[1769888922113,1.04279636,2397.4,2396.2,13.36680076]
[1769888922290,1.04279636,2397.4,2395.9,0.0008]
[1769888922696,1.05952331,2397.4,2395.9,0.0008]
[1769888922903,13.46341187,2397.1,2394.7,0.89172695]
[1769888923116,0.0008,2396.2,2394.8,4.17567572]
[1769888923293,0.0008,2396.2,2395.5,1.04362346]
[1769888923294,0.875,2396.1,2395.5,1.04362346]
[1769888923504,0.875,2396.1,2395.1,12.86183882]
[1769888923732,0.875,2396.1,2395.0,1.04383563]
[1769888923909,0.875,2396.1,2394.9,1.04386354]
[1769888924105,1.04340567,2396.0,2394.6,1.0440157]
[1769888924310,0.60920284,2395.9,2394.7,0.6860972]
[1769888924520,0.60920284,2395.9,2394.5,17.02117482]
[1769888924521,0.60920284,2395.9,2394.5,12.84511187]
[1769888924702,0.1024,2395.8,2394.5,12.84511187]
[1769888924911,0.1024,2395.8,2394.3,0.0011]
[1769888925327,0.11912695,2395.8,2394.3,0.0011]
[1769888925522,0.01672695,2395.6,2394.3,0.0011]
[1769888925894,0.1024,2395.8,2394.5,1.04403759]
[1769888926117,1.04353633,2395.7,2394.6,0.52203184]
[1769888926327,1.91853633,2395.7,2394.4,1.04409384]
[1769888926624,1.91853633,2395.7,2394.3,1.04524257]
[1769888926800,1.91853633,2395.7,2394.3,1.04523397]
[1769888926998,1.04353633,2395.7,2394.3,0.0011]
[1769888927218,1.51290781,2395.6,2394.3,0.0011]
[1769888927519,0.01672695,2395.2,2394.3,0.0011]
[1769888927700,0.01672695,2394.9,2394.0,0.0011]
[1769888928010,0.01672695,2394.7,2394.0,0.0011]
[1769888928208,1.0440593,2394.5,2394.0,0.0011]
[1769888928421,2.08960441,2394.5,2393.4,0.0011]
[1769888928604,2.08960441,2394.5,2393.1,0.0011]
[1769888928605,0.01672695,2393.9,2393.1,0.0011]
[1769888928797,0.01672695,2393.7,2393.1,0.0011]
[1769888928995,0.875,2393.6,2393.1,0.0011]
[1769888929224,0.875,2393.5,2393.1,0.0011]
[1769888929424,0.875,2393.5,2392.3,13.89120766]
[1769888929629,0.875,2393.5,2392.4,1.38912077]
[1769888929934,0.875,2393.5,2392.4,1.04496461]
[1769888930101,0.875,2393.5,2392.5,1.04492598]
[1769888930298,1.04419012,2394.2,2392.3,12.84621187]
[1769888930507,0.875,2394.1,2392.3,12.84621187]
[1769888930712,1.50299471,2394.1,2392.4,1.28462119]
[1769888930921,1.50299471,2394.1,2392.4,14.12973306]
[1769888931433,0.01672695,2394.0,2392.4,14.12973306]
[1769888931723,1.04419012,2394.2,2392.6,12.86183882]
[1769888931931,0.875,2394.0,2392.6,12.86183882]
[1769888932227,1.91928573,2394.0,2392.8,12.84511187]
[1769888932431,1.91928573,2394.0,2393.0,12.84511187]
[1769888933228,1.91927842,2394.0,2393.0,12.84511187]
[1769888933427,1.91927842,2394.0,2392.9,1.38899566]
[1769888933605,1.93600537,2394.0,2392.6,1.04488256]
[1769888933813,0.61131148,2393.9,2392.6,2.07674141]
[1769888934128,0.875,2393.9,2392.6,15.96671926]
[1769888934344,0.875,2393.8,2392.6,15.96671926]
[1769888935501,0.875,2393.8,2392.6,14.92185328]
[1769888935728,0.875,2393.7,2392.6,13.8899986]
[1769888936029,1.04427736,2394.0,2392.6,13.8899986]
[1769888936224,1.0443646,2393.8,2392.6,13.8899986]
[1769888936600,1.0443646,2393.8,2392.6,13.88998706]
[1769888936807,2.07179275,2393.8,2392.6,15.27898577]
[1769888937698,0.01672695,2393.7,2392.5,1.04490013]
[1769888938305,1.92045187,2393.6,2392.4,12.84511187]
[1769888940110,1.04445187,2393.6,2392.4,12.84511187]
[1769888940330,0.876,2393.5,2392.6,0.0011]
[1769888940507,1.04453914,2393.4,2392.6,0.0011]
[1769888940710,1.04453914,2393.4,2392.6,1.80818723]
[1769888941109,0.001,2393.9,2392.6,14.6532991]
[1769888941330,0.001,2393.9,2392.8,12.84511187]
[1769888941521,0.876,2393.8,2393.0,12.84511187]
[1769888942717,1.04440823,2393.7,2393.0,12.84511187]
[1769888943534,1.04440823,2393.7,2392.8,1.04479397]
[1769888943706,0.01672695,2393.6,2392.6,1.80818723]
[1769888943906,0.01672695,2393.6,2392.6,2.85306685]
[1769888944208,1.04440823,2393.7,2392.7,1.74810266]
[1769888944409,1.04440823,2393.7,2392.4,1.03757298]
[1769888944410,0.01672695,2393.6,2392.4,1.03757298]
[1769888944627,0.0016,2392.9,2392.0,4.1817013]
[1769888944825,0.876,2392.8,2392.0,4.1817013]
[1769888946326,0.876,2392.8,2392.0,0.0011]
[1769888947047,1.92080897,2392.8,2392.0,0.0011]
[1769888947445,2.53095967,2392.8,2392.0,0.0011]
[1769888947747,0.876,2392.9,2392.4,13.90010995]
[1769888947935,0.0016,2393.2,2392.4,13.883383]
[1769888948136,0.876,2393.1,2392.4,13.883383]
[1769888948332,0.876,2393.1,2392.5,15.273504]
[1769888948530,0.876,2393.0,2392.5,15.273504]
[1769888948731,0.0016,2393.4,2392.6,1.0448884]
[1769888948936,0.001,2393.9,2392.9,13.883383]
[1769888948937,0.21799253,2393.7,2392.9,13.883383]
[1769888949246,0.876,2393.6,2393.0,1.390011]
[1769888949843,0.876,2393.5,2393.0,1.390011]
[1769888950221,0.876,2393.5,2392.5,2.43502328]
[1769888950421,0.876,2393.5,2392.5,1.390121]
[1769888950649,0.876,2393.5,2392.3,1.04609083]
[1769888950650,0.876,2393.5,2392.3,0.0011]
[1769888950946,1.04439808,2393.8,2392.5,13.90010995]
[1769888951152,0.876,2393.4,2392.6,15.29179364]
[1769888951353,0.001,2393.9,2392.6,15.27506669]
[1769888951647,0.876,2393.8,2393.2,13.883383]
[1769888951870,0.876,2393.8,2392.7,13.883383]
[1769888952144,0.876,2393.8,2393.2,0.0008]
[1769888952347,0.01672695,2393.5,2392.3,0.0011]
[1769888952643,0.876,2393.4,2392.3,0.0011]
[1769888952845,1.04458279,2393.3,2392.3,0.0011]
[1769888953047,0.876,2393.2,2392.3,0.0011]
[1769888953456,0.876,2393.2,2392.5,0.0011]
[1769888953760,0.876,2393.1,2392.5,0.0011]
[1769888954259,0.876,2393.1,2391.4,0.0011]
[1769888954260,0.01672695,2392.7,2391.4,0.0011]
[1769888954431,0.01672695,2392.6,2391.6,0.0008]
[1769888954758,0.01672695,2392.5,2391.6,0.0008]
[1769888954981,0.01672695,2392.2,2391.3,0.0011]
[1769888955129,0.01672695,2392.2,2391.2,0.0011]
[1769888955130,0.01672695,2391.8,2391.0,0.0011]
[1769888955330,0.01672695,2391.8,2390.0,0.0011]
[1769888955331,0.01672695,2391.6,2390.7,0.0008]
[1769888955566,0.89272695,2391.5,2390.7,0.0008]
[1769888955964,0.01672695,2391.4,2390.4,0.0016]
[1769888956260,0.01672695,2391.4,2390.0,0.0011]
[1769888956261,0.01672695,2391.0,2390.0,0.0011]
[1769888956463,0.01672695,2390.7,2389.7,0.0016]
[1769888956663,0.01672695,2390.5,2389.7,0.0016]
[1769888956826,4.44969935,2390.4,2389.7,0.0016]
[1769888957031,1.31216283,2390.4,2389.7,0.0016]
[1769888957963,1.06256926,2390.5,2389.7,0.0016]
[1769888958169,0.876,2390.3,2389.7,0.0016]
[1769888958677,0.876,2390.2,2389.7,0.0016]
[1769888959653,4.19995221,2390.7,2389.7,0.0016]
[1769888959654,0.876,2390.1,2389.7,0.0016]
[1769888959844,0.01672695,2391.1,2389.7,0.0016]
[1769888960044,0.876,2391.0,2389.7,0.0016]
[1769888960357,0.876,2390.9,2389.8,13.90010995]
[1769888960654,0.876,2390.9,2389.7,0.0016]
[1769888960655,0.876,2390.9,2389.9,1.39017099]
[1769888960864,1.04567508,2390.8,2389.7,0.0016]
[1769888962060,1.04565875,2390.9,2389.7,13.884983]
[1769888962353,0.876,2390.8,2389.9,13.883383]
[1769888962556,0.876,2391.0,2390.2,13.883383]
[1769888962933,1.04528159,2391.7,2390.3,14.92927682]
[1769888963146,0.876,2391.6,2390.3,14.92927682]
[1769888963758,0.876,2391.6,2390.0,1.3883383]
[1769888964069,0.01672695,2391.3,2389.7,0.0016]
[1769888964426,0.01672695,2391.3,2390.0,1.04599356]
[1769888964628,0.01672695,2391.3,2389.7,0.0016]
[1769888964839,0.01672695,2391.1,2389.7,0.0016]
[1769888965242,1.06231457,2391.0,2389.7,0.0016]
[1769888965445,0.5261392,2390.9,2389.7,0.0016]
[1769888965764,0.01672695,2390.8,2390.1,0.0011]
[1769888966133,0.877,2390.7,2390.1,0.0011]
[1769888967639,1.04576257,2390.6,2390.1,0.0011]
[1769888968243,1.04576257,2390.6,2389.9,0.0011]
[1769888968861,1.04576257,2390.6,2388.9,14.88368976]
[1769888969040,2.07799427,2390.6,2389.0,1.90697523]
[1769888969246,0.01672695,2390.2,2389.0,1.90697523]
[1769888969444,0.01672695,2390.2,2388.8,1.0465404]
[1769888969664,1.0460251,2390.0,2388.6,0.0008]
[1769888969973,1.06275205,2390.0,2388.6,0.0008]
[1769888970143,0.01672695,2389.7,2388.6,0.0008]
[1769888970343,0.89372695,2389.6,2388.6,1.91255874]
[1769888970864,0.01672695,2389.3,2388.6,0.0008]
[1769888971061,0.01672695,2389.0,2388.6,0.0008]
[1769888971265,0.01672695,2389.0,2387.5,16.73534207]
[1769888971468,0.01672695,2388.7,2387.5,1.80487347]
[1769888971636,0.89372695,2388.6,2387.5,0.28520598]
[1769888971837,0.01672695,2388.7,2387.5,1.04709016]
[1769888972172,0.01672695,2389.0,2387.7,13.883383]
[1769888972173,0.294,2389.0,2387.7,13.883383]
[1769888972759,0.01672695,2388.9,2387.4,1.04713196]
[1769888972960,0.01672695,2388.8,2387.5,1.04711968]
[1769888973151,0.01672695,2388.4,2386.7,13.883383]
[1769888973358,0.01672695,2388.0,2386.8,1.04740609]
[1769888973568,0.87126757,2387.9,2386.9,1.04848026]
[1769888973886,1.04698886,2387.8,2386.9,0.0011]
[1769888974045,1.04698886,2387.8,2386.9,1.91326483]
[1769888974046,0.877,2387.7,2386.9,1.91326483]
[1769888974242,0.01672695,2388.5,2386.9,13.884483]
[1769888974470,0.877,2388.5,2386.9,13.884483]
[1769888974675,0.877,2388.5,2387.2,13.883383]
[1769888974861,1.04659438,2388.7,2387.2,13.883383]
[1769888975068,0.877,2388.4,2387.3,1.3883383]
[1769888975253,1.06332133,2388.7,2387.3,1.3883383]
[1769888975453,1.04641915,2389.2,2387.7,13.883383]
[1769888975751,0.877,2389.1,2387.9,13.883383]
[1769888975940,1.92342138,2389.1,2387.9,13.883383]
[1769888976143,1.04627166,2389.5,2387.9,13.883383]
[1769888976344,1.04622847,2389.6,2388.3,13.883383]
[1769888976658,0.877,2389.5,2388.3,13.883383]
[1769888976961,1.0460251,2390.0,2388.3,13.883383]
[1769888977144,0.877,2389.9,2388.3,13.883383]
[1769888977347,1.50443669,2389.9,2388.4,1.41169533]
[1769888977546,0.01672695,2389.6,2388.4,1.41169533]
[1769888977852,1.06275205,2390.0,2387.8,15.14590577]
[1769888977853,1.0460251,2390.0,2388.6,0.2335703]
[1769888978170,0.877,2389.9,2388.6,1.52798519]
[1769888978375,0.877,2389.9,2388.6,1.29441489]
[1769888978975,1.04580631,2390.5,2389.1,12.71057861]
[1769888979175,0.877,2390.4,2389.1,12.46057861]
[1769888979388,0.877,2390.4,2389.2,13.95663647]
[1769888979877,0.001,2391.1,2389.6,12.72730556]
[1769888980077,1.04519419,2391.9,2390.2,12.71057861]
[1769888980387,0.21818333,2391.9,2390.6,12.71057861]
[1769888980589,0.877,2391.8,2390.0,12.94414891]
[1769888980879,0.01672695,2391.7,2390.1,1.29441489]
[1769888981047,1.061906,2392.0,2390.2,12.99781797]
[1769888981048,1.04517905,2392.0,2390.2,12.99781797]
[1769888981246,0.877,2391.9,2390.2,12.99781797]
[1769888981452,0.877,2391.9,2390.3,14.19514365]
[1769888981647,0.877,2391.9,2390.5,12.76424767]
[1769888981849,1.04517059,2392.0,2390.6,13.81001024]
[1769888982050,1.26328065,2392.1,2390.7,12.99781797]
[1769888982250,1.04511752,2392.1,2390.8,14.16860572]
[1769888982446,1.92211752,2392.1,2390.8,14.16860572]
[1769888982869,1.92211752,2392.1,2390.8,1.40435805]
[1769888983084,1.93884447,2392.1,2390.6,1.04576257]
[1769888983305,0.01672695,2391.8,2390.3,1.43089598]
[1769888983507,0.01672695,2391.8,2390.3,2.47678463]
[1769888983884,1.04528159,2391.7,2390.4,1.0458431]
[1769888984086,0.877,2391.6,2390.4,13.81009077]
[1769888984313,0.877,2391.6,2390.4,2.36079286]
[1769888984608,0.877,2391.6,2390.3,1.43089598]
[1769888984609,0.89372695,2391.6,2390.3,1.0458855]
[1769888984906,0.01672695,2391.7,2390.3,1.0458855]
[1769888984907,0.877,2391.5,2390.3,1.0458926]
[1769888985094,0.877,2391.5,2390.4,0.52294679]
[1769888986100,1.06213967,2391.4,2389.5,4.18482215]
[1769888986301,1.06213967,2391.4,2390.4,1.04584827]
[1769888986506,0.01672695,2391.8,2390.4,1.04584827]
[1769888986686,4.19739377,2392.0,2390.4,13.81009594]
[1769888986687,1.04523789,2391.9,2390.4,13.81009594]
[1769888986914,0.877,2391.7,2390.6,12.76424767]
[1769888987376,1.04501943,2392.3,2390.7,12.99781797]
[1769888987602,0.877,2392.2,2390.7,12.99781797]
[1769888987907,0.877,2392.2,2390.9,12.99781797]
[1769888988084,1.0451068,2392.1,2391.0,1.04558762]
[1769888988290,0.877,2392.2,2391.0,1.04558762]
[1769888988492,0.877,2392.2,2391.0,13.80983529]
[1769888988693,0.01672695,2393.1,2391.4,12.76424767]
[1769888988908,0.21806393,2392.8,2391.5,14.04067244]
[1769888989220,1.92171374,2393.0,2391.5,12.76424767]
[1769888989781,0.01772695,2393.4,2391.9,12.76424767]
[1769888989981,5.05540004,2393.3,2392.0,1.27642477]
[1769888990184,5.05540004,2393.3,2392.1,1.0451068]
[1769888991925,0.01672695,2393.2,2392.0,1.27642477]
[1769888992078,1.04471374,2393.0,2391.5,1.04534735]
[1769888992392,0.01672695,2392.9,2391.5,1.04534735]
[1769888992983,1.04470377,2393.1,2391.5,13.80959502]
[1769888993186,0.877,2393.1,2391.9,12.76424767]
[1769888993412,0.001,2393.4,2392.3,12.76424767]
[1769888993783,0.001,2393.9,2392.6,12.76424767]
[1769888994002,0.001,2393.9,2392.3,0.2335703]
[1769888994003,0.001,2393.9,2392.9,0.2335703]
[1769888994203,1.0439721,2394.7,2393.1,12.99781797]
[1769888994428,4.19123144,2395.5,2393.3,12.78097462]
[1769888994612,0.21874343,2394.7,2393.3,12.78097462]
[1769888994810,0.0008,2394.7,2393.3,12.78097462]
[1769888995111,0.0008,2394.7,2393.5,12.76424767]
[1769888995514,0.0008,2394.7,2393.6,12.99781797]
[1769888996216,0.0008,2394.7,2393.7,13.8086559]
[1769888996420,0.0008,2394.7,2393.8,0.2335703]
[1769888996713,0.0008,2394.7,2393.7,13.8086559]
[1769888997021,0.0008,2394.7,2393.7,1.04440823]
[1769888997205,0.0008,2394.7,2393.4,1.27977016]
[1769888997419,0.0008,2394.7,2393.6,13.80869803]
[1769888997590,1.04381859,2395.1,2393.7,12.99781797]
[1769888997912,0.01672695,2396.1,2393.7,12.99781797]
[1769888997913,0.876,2396.0,2394.4,12.76424767]
[1769888998287,1.04353633,2395.7,2394.1,12.99781797]
[1769888998487,1.04344922,2395.9,2394.1,12.99781797]
[1769888998811,0.876,2395.8,2394.3,12.76424767]
[1769888998989,0.876,2395.8,2394.4,0.2335703]
[1769888999381,1.04344922,2395.9,2394.3,0.2335703]
[1769888999612,0.876,2395.8,2394.4,12.76424767]
[1769889000513,0.876,2395.8,2394.5,1.0440593]
[1769889000811,0.21801848,2396.0,2394.5,12.76424767]
[1769889001012,0.21801848,2396.0,2394.9,12.76424767]
[1769889001213,1.04330608,2396.3,2394.9,12.76424767]
[1769889001388,1.05961031,2397.3,2395.0,12.78097462]
[1769889001585,4.17162985,2397.2,2395.5,12.76424767]
[1769889001790,0.01672695,2396.8,2395.1,1.27809746]
[1769889001986,0.01672695,2396.8,2394.6,0.01672695]
[1769889001987,0.01672695,2396.5,2394.4,13.80832404]
[1769889002218,4.38958931,2397.2,2395.0,12.76424767]
[1769889002387,4.38958931,2397.2,2395.7,12.99781797]
[1769889002388,1.26084526,2397.2,2395.7,12.99781797]
[1769889002587,1.04327466,2398.7,2396.7,12.78097462]
[1769889002818,1.04227466,2398.6,2397.2,0.2335703]
[1769889002990,0.0008,2398.1,2396.9,0.0008]
[1769889003187,0.0008,2398.1,2397.2,12.99781797]
[1769889003391,0.0008,2398.4,2397.5,0.01672695]
[1769889003591,0.0008,2398.4,2397.6,0.25029725]
[1769889003830,0.001,2398.7,2397.8,12.78097462]
[1769889004130,1.04405302,2398.7,2397.8,12.76424767]
[1769889004289,1.04405302,2398.7,2397.4,0.25029725]
[1769889004290,1.56531822,2398.7,2397.3,1.30145449]
[1769889004629,0.11912695,2398.6,2396.9,0.0008]
[1769889004925,0.01672695,2398.1,2396.9,0.0008]
[1769889005235,0.01672695,2398.1,2395.4,0.01672695]
[1769889005236,0.01672695,2397.6,2395.4,0.01672695]
[1769889005401,0.01672695,2397.6,2395.5,12.78097462]
[1769889005722,0.875,2397.8,2396.4,12.78097462]
[1769889005923,0.875,2397.8,2397.0,1.04294]
[1769889006131,0.875,2397.8,2396.5,1.27977016]
[1769889006497,1.04266588,2397.7,2396.5,1.29649711]
[1769889006707,1.04266588,2397.7,2396.1,4.40689993]
[1769889006912,1.04266588,2397.7,2395.9,0.01672695]
[1769889007233,1.04266588,2397.7,2396.5,1.04317601]
[1769889007527,0.875,2397.6,2396.5,1.04317601]
[1769889007732,0.875,2397.6,2395.1,4.19175935]
[1769889007895,0.11912695,2397.5,2395.5,4.17434949]
[1769889008094,0.01672695,2397.4,2395.2,0.01672695]
[1769889008291,0.01672695,2396.8,2395.0,4.17535194]
[1769889008512,1.91810093,2396.7,2394.9,13.743378]
[1769889008725,1.91810093,2396.7,2395.3,0.01672695]
[1769889009096,1.91810093,2396.7,2395.1,0.41753519]
[1769889009524,1.91810093,2396.7,2395.3,0.01672695]
[1769889009905,1.04310093,2396.7,2395.1,0.41753519]
[1769889010110,1.39655047,2396.6,2395.1,0.41753519]
[1769889010507,1.04318798,2396.5,2395.4,0.01672695]
[1769889010710,1.04318798,2396.5,2395.3,0.01672695]
[1769889011014,1.04318798,2396.5,2394.1,1.06095138]
[1769889011015,13.7002715,2396.2,2394.1,1.06095138]
[1769889011321,0.1024,2396.1,2394.4,1.04407808]
[1769889011497,0.11912695,2396.1,2394.3,1.04412572]
[1769889011695,0.11912695,2396.1,2394.4,0.52207337]
[1769889011696,1.38361254,2396.1,2394.4,0.52207337]
[1769889011895,17.88975037,2396.8,2394.3,0.01672695]
[1769889011896,1.04317481,2396.6,2395.1,1.06051914]
[1769889012126,1.04317481,2396.6,2395.0,4.19191796]
[1769889012127,0.875,2396.5,2395.0,1.04380798]
[1769889012332,0.875,2396.5,2395.1,1.04379481]
[1769889012510,1.04323151,2396.4,2394.6,4.17600393]
[1769889012708,1.04323151,2396.4,2394.9,0.01672695]
[1769889013027,1.91821749,2396.5,2395.2,12.71622003]
[1769889013199,1.91821749,2396.5,2395.2,12.69949308]
[1769889013621,1.91821749,2396.5,2394.7,13.26325172]
[1769889013836,2.52729927,2396.5,2394.9,0.01672695]
[1769889014045,4.17183933,2397.1,2395.5,0.01672695]
[1769889014200,4.17143487,2397.3,2395.8,0.25029725]
[1769889014201,1.04283986,2397.3,2395.8,0.25029725]
[1769889014400,1.04283986,2397.3,2395.9,12.94979033]
[1769889014639,1.04283986,2397.3,2396.1,1.04336213]
[1769889014811,1.91782154,2397.4,2396.2,0.54671079]
[1769889015200,1.91782154,2397.4,2396.0,1.04340148]
[1769889015407,0.1024,2397.3,2396.0,1.04340148]
[1769889015734,1.91782154,2397.4,2396.0,1.04340148]
[1769889016111,1.91782154,2397.4,2396.0,1.04340057]
[1769889016112,0.01672695,2397.2,2396.0,1.04340057]
[1769889016311,1.05954849,2397.4,2396.1,0.52170233]
[1769889016312,0.875,2397.1,2396.1,0.52170233]
[1769889016522,0.875,2397.1,2395.4,12.71732003]
[1769889016523,0.875,2397.1,2395.7,1.04350729]
[1769889016723,1.04297037,2397.0,2395.4,13.74424881]
[1769889016947,1.04297037,2397.0,2395.7,0.25029725]
[1769889017103,1.04297037,2397.0,2395.7,1.29832442]
[1769889017309,1.04297037,2397.0,2395.4,1.04475573]
[1769889017543,1.04297037,2397.0,2395.4,0.0011]
[1769889017544,0.01672695,2396.8,2395.4,0.0011]
[1769889017701,0.01672695,2396.8,2395.1,0.0011]
[1769889017702,0.01672695,2396.2,2395.1,0.0011]
[1769889018029,0.89172695,2396.1,2395.1,0.0019]
[1769889018614,1.04340567,2396.0,2395.1,0.0019]
[1769889018830,0.62760248,2395.9,2394.2,1.04527019]
[1769889019135,0.61087553,2395.9,2394.2,1.04527794]
[1769889019428,0.61087553,2395.9,2394.3,0.52220384]
[1769889019429,0.875,2395.8,2394.3,0.52220384]
[1769889019631,0.61087553,2395.9,2394.3,0.52220384]
[1769889019830,0.875,2396.4,2394.8,0.01672695]
[1769889020019,0.875,2396.4,2394.8,1.27496739]
[1769889020220,0.11912695,2396.3,2394.8,1.27496739]
[1769889020424,0.11912695,2396.3,2394.4,0.2335703]
[1769889020614,1.04336213,2396.1,2394.4,1.0441029]
[1769889020823,1.04336213,2396.1,2394.4,1.06082985]
[1769889021020,1.04336213,2396.1,2394.8,0.01672695]
[1769889021226,0.52168107,2396.0,2394.6,12.69949308]
[1769889021535,1.04336213,2396.1,2394.7,0.25029725]
[1769889021739,1.04336213,2396.1,2394.7,0.01672695]
[1769889021916,1.04336213,2396.1,2394.6,12.71622003]
[1769889022230,1.04336213,2396.1,2394.7,0.01672695]
[1769889022413,1.04336213,2396.1,2394.7,13.97278778]
[1769889022614,1.04327504,2396.3,2394.8,1.04392851]
[1769889022814,1.04327504,2396.3,2394.9,0.01672695]
[1769889023117,1.04327504,2396.3,2394.8,1.04392851]
[1769889023317,1.04327504,2396.3,2394.9,0.01672695]
[1769889023520,1.04327504,2396.3,2394.9,0.65431181]
[1769889023521,2.06972258,2396.3,2394.9,0.65431181]
[1769889023934,0.1024,2396.2,2394.3,0.52220384]
[1769889024142,0.1024,2396.2,2394.4,4.17635227]
[1769889024347,0.1024,2396.2,2394.7,1.04396876]
[1769889024664,1.04336213,2396.1,2394.3,1.06082985]
[1769889024961,0.53192107,2396.0,2394.4,4.19311678]
[1769889025114,0.53192107,2396.0,2394.5,0.01672695]
[1769889025311,0.875,2395.9,2394.8,0.01672695]
[1769889025717,0.875,2395.9,2394.7,0.01672695]
[1769889026515,0.875,2395.9,2394.8,0.01672695]
[1769889026722,1.04349277,2395.8,2394.6,0.0011]
[1769889026947,5.04897111,2395.9,2394.9,0.01672695]
[1769889026948,0.875,2395.9,2394.9,0.01672695]
[1769889027134,0.001,2396.0,2395.0,0.01672695]
[1769889027342,1.04441256,2396.0,2395.0,0.01672695]
[1769889027553,1.04441256,2396.0,2394.9,0.01672695]
[1769889027715,0.60928772,2395.9,2394.6,12.70059308]
[1769889028749,1.04349277,2395.8,2394.6,0.0011]
[1769889029045,13.81939845,2395.7,2394.4,0.0011]
[1769889029216,0.11912695,2395.2,2394.1,0.0008]
[1769889029413,0.875,2395.1,2393.8,0.0008]
[1769889029817,0.01672695,2394.8,2393.4,4.079605]
[1769889030048,0.01672695,2394.7,2393.5,0.0008]
[1769889030846,1.0440593,2394.5,2393.4,0.0011]
[1769889031051,0.52202965,2394.4,2393.4,0.0011]
[1769889031369,4.1760628,2394.7,2393.4,0.0011]
[1769889031521,0.875,2394.6,2393.5,0.01672695]
[1769889031842,0.875,2395.3,2393.8,12.69949308]
[1769889032045,0.875,2395.3,2393.9,1.271622]
[1769889032351,0.01672695,2395.2,2393.4,0.0011]
[1769889032548,0.875,2395.3,2393.5,0.01672695]
[1769889032851,1.04379775,2395.1,2393.5,1.04446654]
[1769889033345,1.0605247,2395.1,2393.5,1.04448735]
[1769889033546,1.04379775,2395.1,2393.6,0.01672695]
[1769889033749,1.04379775,2395.1,2393.6,0.52570233]
[1769889034847,4.17519101,2395.2,2393.6,0.52570233]
[1769889035022,0.11912695,2395.1,2393.4,4.17920208]
[1769889035223,0.11912695,2395.1,2393.6,1.04444856]
[1769889035543,0.01672695,2394.5,2393.4,0.0011]
[1769889035850,0.875,2394.4,2393.4,0.0011]
[1769889036626,0.01672695,2394.3,2393.2,0.0008]
[1769889036828,1.04423374,2394.1,2393.1,0.0008]
[1769889037152,0.52378957,2394.0,2393.1,0.0008]
[1769889037367,0.54051652,2394.0,2393.1,0.0008]
[1769889037669,0.01672695,2393.8,2392.8,0.0008]
[1769889038928,1.04440823,2393.7,2392.8,0.0008]
[1769889039129,1.04414651,2394.3,2393.6,0.0011]
[1769889039330,1.04414651,2394.3,2392.8,0.0008]
[1769889039522,1.04414651,2394.3,2393.4,0.0011]
[1769889039724,0.1024,2394.2,2393.4,0.0011]
[1769889040553,0.11912695,2394.2,2392.8,0.0008]
[1769889040737,0.74395829,2394.2,2392.8,0.0008]
[1769889041060,1.06096069,2394.1,2392.8,0.0008]
[1769889043336,0.1024,2394.0,2392.8,0.0008]
[1769889043536,0.01672695,2392.4,2391.6,1.28405392]
[1769889043843,0.89272695,2392.7,2391.8,1.04523646]
[1769889044045,0.01672695,2392.5,2391.8,1.04523646]
[1769889044260,0.01672695,2392.8,2391.6,14.09798285]
[1769889044567,0.89272695,2393.5,2392.0,4.18054605]
[1769889044726,0.89272695,2393.5,2392.1,1.04508031]
[1769889044727,0.01672695,2393.0,2392.1,1.04508031]
[1769889044927,0.01672695,2392.7,2391.7,2.45506321]
[1769889045230,0.01672695,2392.8,2391.7,2.45506321]
[1769889045231,1.06144069,2393.0,2391.7,1.04528159]
[1769889045432,0.01672695,2393.0,2391.7,1.04528159]
[1769889045635,1.0447014,2393.1,2391.8,13.69854542]
[1769889045837,1.0447014,2393.1,2391.8,13.46497512]
[1769889046067,1.06142835,2393.1,2391.8,13.46497512]
[1769889046249,1.06142835,2393.1,2391.6,2.32934734]
[1769889046250,0.01672695,2392.7,2391.6,2.32934734]
[1769889046454,0.01672695,2393.2,2391.6,15.14327627]
[1769889046665,0.01672695,2393.2,2391.7,0.2335703]
[1769889046990,0.01672695,2393.2,2391.7,15.00331401]
[1769889047169,4.19407817,2393.9,2391.9,13.04749923]
[1769889047467,4.19407817,2393.9,2391.9,12.81392893]
[1769889047468,0.01672695,2393.4,2391.9,12.81392893]
[1769889047767,0.01672695,2393.2,2392.0,1.47351668]
[1769889047967,0.01672695,2393.3,2392.0,1.47351668]
[1769889048168,0.01672695,2393.0,2392.0,12.81392893]
[1769889048368,0.11912695,2394.1,2392.2,12.81392893]
[1769889048548,0.01672695,2393.3,2392.4,12.81392893]
[1769889048738,0.01672695,2393.0,2392.4,1.28139289]
[1769889048938,0.01672695,2392.9,2392.0,0.2335703]
[1769889049135,0.01672695,2392.9,2392.0,1.0451505]
[1769889050066,0.61491234,2394.0,2392.7,0.2335703]
[1769889050365,1.06088016,2394.3,2392.9,12.81392893]
[1769889050539,0.01672695,2394.0,2393.0,1.28139289]
[1769889050734,0.01672695,2393.9,2393.0,1.28139289]
[1769889051066,0.01672695,2394.2,2393.0,1.28139289]
[1769889051267,0.01672695,2394.3,2393.1,13.85859902]
[1769889051772,0.001,2394.2,2393.1,13.85859902]
[1769889052083,0.001,2394.2,2393.2,13.04749923]
[1769889052382,0.001,2394.2,2393.1,1.04467009]
[1769889052383,0.01672695,2394.5,2393.4,13.04749923]
[1769889053364,0.01672695,2394.5,2393.5,1.0444955]